[Event "WJCC U20 Girls 2019"]
[Site "New Delhi"]
[Date "2019.10.17"]
[Round "4.44"]
[White "Punsalan, Vyanla M"]
[Black "Rousseau, Christilla"]
[Result "1/2-1/2"]
[ECO "B12"]
[WhiteElo "1964"]
[BlackElo "1648"]
[Annotator "NA"]
[PlyCount "88"]
[EventDate "2019.10.15"]
[EventType "swiss"]
[EventCountry "IND"]
[SourceTitle "playchess.com"]
[Source "ChessBase"]
[SourceQuality "1"]
[TimeControl "40/5400+30:1800+30"]

1. e4 {[%emt 0:00:00]} c6 {[%emt 0:00:00]} 2. d4 d5 {[%emt 0:00:00]} 3. e5 {[%emt 0:00:05]} Bf5 {[%emt 0:00:00]} 4. Nf3 {[%emt 0:00:23]} e6 {[%emt 0:00:00]} 5. a3 {[%emt 0:00:15]} c5 {[%emt 0:00:07]} 6. dxc5 {[%emt 0:00:17]} Bxc5 {[%emt 0:00:07]} 7. b4 {[%emt 0:00:10]} Bb6 {[%emt 0:00:19]} 8. Nbd2 {[%emt 0:00:17]} Ne7 {[%emt 0:00:40]} 9. Bb2 {[%emt 0:00:55]} O-O {[%emt 0:01:41]} 10. c4 {[%emt 0:02:21]} a5 {[%emt 0:02:05]} 11. c5 {[%emt 0:03:07]} Bc7 {[%emt 0:00:05]} 12. b5 {[%emt 0:01:01]} Nd7 {[%emt 0:03:15]} 13. Rc1 {[%emt 0:02:51]} Ng6 {[%emt 0:08:23]} 14. Qe2 {[%emt 0:03:11]} Qb8 {[%emt 0:03:56]} 15. b6 {[%emt 0:15:42]} Bxe5 {[%emt 0:02:23]} 16. Nxe5 {[%emt 0:02:31]} Ngxe5 {[%emt 0:00:53]} 17. Qb5 {[%emt 0:01:30]} Nc6 {[%emt 0:01:57]} 18. g4 {[%emt 0:05:56]} Bg6 {[%emt 0:07:12]} 19. Qa4 {[%emt 0:01:31]} Nde5 {[%emt 0:05:32]} 20. Rg1 {[%emt 0:03:46]} Nd3+ {[%emt 0:06:12]} 21. Bxd3 {[%emt 0:00:46]} Bxd3 {[%emt 0:00:06]} 22. Rg3 {[%emt 0:00:37]} Bg6 {[%emt 0:02:39]} 23. h4 {[%emt 0:01:29]} f6 {[%emt 0:06:40]} 24. h5 {[%emt 0:04:18]} Be8 {[%emt 0:00:18]} 25. g5 {[%emt 0:05:16]} f5 {[%emt 0:04:46]} 26. g6 {[%emt 0:06:36]} h6 {[%emt 0:00:40]} 27. f4 {[%emt 0:08:18]} Qd8 {[%emt 0:05:30]} 28. Kf2 {[%emt 0:01:25]} Qe7 {[%emt 0:04:42]} 29. Qb3 {[%emt 0:07:34]} Rd8 {[%emt 0:07:31]} 30. Nf3 {[%emt 0:02:11]} Kh8 {[%emt 0:05:21]} 31. Qe3 {[%emt 0:02:53]} a4 {[%emt 0:04:20]} 32. Nd4 {[%emt 0:03:38]} Nxd4 {[%emt 0:02:18]} 33. Bxd4 {[%emt 0:00:05]} Qh4 {[%emt 0:04:23]} 34. Kg2 {[%emt 0:01:41]} Bd7 {[%emt 0:02:35]} 35. Rh1 {[%emt 0:01:54]} Qe7 {[%emt 0:00:04]} 36. Kh3 {[%emt 0:02:15]} Bc6 {[%emt 0:00:29]} 37. Re1 {[%emt 0:00:42]} Rde8 {[%emt 0:00:15]} 38. Be5 {[%emt 0:00:59]} Qd7 {[%emt 0:04:18]} 39. Qd4 {[%emt 0:01:19]} Ra8 {[%emt 0:03:24]} 40. Rge3 {[%emt 0:02:39]} Rfe8 {[%emt 0:00:39]} 41. Bd6 {[%emt 0:32:08]} Ra5 {[%emt 0:05:21]} 42. Rb1 {[%emt 0:00:00]} Raa8 {[%emt 0:02:28]} 43. Rbe1 {[%emt 0:00:00]} Ra5 {[%emt 0:00:36]} 44. Rb1 {[%emt 0:00:00]} Raa8 {[%emt 0:00:09]} 1/2-1/2

[Event "WJCC U20 Girls 2019"]
[Site "New Delhi"]
[Date "2019.10.17"]
[Round "4.45"]
[White "Figueroa Bernal, Julia Dennis"]
[Black "Du Plessis, Anika"]
[Result "1/2-1/2"]
[ECO "B33"]
[WhiteElo "1777"]
[BlackElo "1594"]
[Annotator "NA"]
[PlyCount "94"]
[EventDate "2019.10.15"]
[EventType "swiss"]
[EventCountry "IND"]
[SourceTitle "playchess.com"]
[Source "ChessBase"]
[SourceQuality "1"]
[TimeControl "40/5400+30:1800+30"]

1. e4 {[%emt 0:00:00]} c5 {[%emt 0:00:00]} 2. Nf3 {[%emt 0:00:00]} Nc6 {[%emt 0:00:00]} 3. d4 {[%emt 0:00:00]} cxd4 {[%emt 0:00:00]} 4. Nxd4 {[%emt 0:00:00]} Nf6 {[%emt 0:00:18]} 5. Nc3 {[%emt 0:00:03]} e5 {[%emt 0:00:18]} 6. Ndb5 {[%emt 0:00:11]} d6 {[%emt 0:00:05]} 7. Bg5 {[%emt 0:00:28]} a6 {[%emt 0:00:05]} 8. Na3 {[%emt 0:00:09]} b5 {[%emt 0:00:07]} 9. Nd5 {[%emt 0:00:06]} Be7 {[%emt 0:00:12]} 10. Bxf6 {[%emt 0:00:07]} Bxf6 {[%emt 0:01:44]} 11. Bd3 {[%emt 0:00:13]} Be6 {[%emt 0:05:47]} 12. c3 {[%emt 0:00:33]} g6 {[%emt 0:03:07]} 13. Nc2 {[%emt 0:03:46]} Bg7 {[%emt 0:02:41]} 14. Nce3 {[%emt 0:02:09]} O-O {[%emt 0:02:53]} 15. Qf3 {[%emt 0:09:26]} Ne7 {[%emt 0:13:04]} 16. g4 {[%emt 0:07:37]} Nxd5 {[%emt 0:05:48]} 17. exd5 {[%emt 0:06:18]} Bd7 {[%emt 0:02:22]} 18. Rg1 {[%emt 0:12:28]} Qg5 {[%emt 0:09:25]} 19. Qg3 {[%emt 0:10:20]} Rae8 {[%emt 0:04:32]} 20. h4 {[%emt 0:03:27]} Qf4 {[%emt 0:03:51]} 21. h5 {[%emt 0:08:05]} Qxg3 {[%emt 0:11:38]} 22. Rxg3 {[%emt 0:00:18]} e4 {[%emt 0:01:41]} 23. Be2 {[%emt 0:00:44]} Be5 {[%emt 0:06:12]} 24. Rg2 {[%emt 0:03:35]} Bf4 {[%emt 0:03:36]} 25. O-O-O {[%emt 0:04:20]} Kg7 {[%emt 0:03:59]} 26. Kb1 {[%emt 0:06:52]} Bxe3 {[%emt 0:06:21]} 27. fxe3 {[%emt 0:00:14]} Re5 {[%emt 0:00:39]} 28. Rd4 {[%emt 0:04:33]} f5 {[%emt 0:02:01]} 29. hxg6 {[%emt 0:03:13]} hxg6 {[%emt 0:00:06]} 30. gxf5 {[%emt 0:00:08]} Rfxf5 {[%emt 0:00:08]} 31. Kc2 {[%emt 0:03:04]} Kf6 {[%emt 0:02:46]} 32. Rh2 {[%emt 0:03:52]} Be8 {[%emt 0:01:38]} 33. Bg4 {[%emt 0:03:15]} Rg5 {[%emt 0:01:48]} 34. Be6 {[%emt 0:00:07]} Kg7 {[%emt 0:02:02]} 35. Rf2 {[%emt 0:03:11]} Rg3 {[%emt 0:01:07]} 36. Kd2 {[%emt 0:01:15]} Rgg5 {[%emt 0:00:46]} 37. a4 {[%emt 0:00:47]} bxa4 {[%emt 0:02:39]} 38. Rb4 {[%emt 0:00:07]} Rg3 {[%emt 0:01:40]} 39. Rb8 {[%emt 0:01:07]} Bb5 {[%emt 0:00:20]} 40. Rg8+ {[%emt 0:02:44]} Kh6 {[%emt 0:00:30]} 41. Rd8 {[%emt 0:30:34]} Rf3 {[%emt 0:31:12]} 42. Rg2 {[%emt 0:00:23]} Rg5 {[%emt 0:01:14]} 43. Rh8+ {[%emt 0:00:19]} Kg7 {[%emt 0:00:12]} 44. Rg8+ {[%emt 0:00:20]} Kh6 {[%emt 0:00:53]} 45. Bg4 {[%emt 0:00:33]} Rxd5+ {[%emt 0:00:00]} 46. Kc2 {[%emt 0:00:00]} Rxe3 {[%emt 0:00:00]} 47. Bd1 {[%emt 0:00:00]} Kh7 {[%emt 0:00:00]} 1/2-1/2

[Event "WJCC U20 Girls 2019"]
[Site "New Delhi"]
[Date "2019.10.17"]
[Round "4.46"]
[White "Rathi Dhanashree"]
[Black "Reid, Caitlin"]
[Result "0-1"]
[ECO "A83"]
[WhiteElo "1692"]
[BlackElo "1489"]
[Annotator "NA"]
[PlyCount "59"]
[EventDate "2019.10.15"]
[EventType "swiss"]
[EventCountry "IND"]
[SourceTitle "playchess.com"]
[Source "ChessBase"]
[SourceQuality "1"]
[TimeControl "40/5400+30:1800+30"]

1. d4 {[%emt 0:00:00]} f5 {[%emt 0:00:00]} 2. e4 {[%emt 0:00:36]} fxe4 {[%emt 0:00:53]} 3. Nc3 {[%emt 0:00:05]} Nf6 {[%emt 0:00:17]} 4. Bg5 {[%emt 0:00:10]} d5 {[%emt 0:03:22]} 5. Bxf6 {[%emt 0:00:33]} exf6 {[%emt 0:00:54]} 6. Qh5+ {[%emt 0:00:18]} g6 {[%emt 0:03:50]} 7. Qxd5 {[%emt 0:00:29]} Nc6 {[%emt 0:05:49]} 8. Qxe4+ {[%emt 0:08:00]} Be7 {[%emt 0:01:07]} 9. Bb5 {[%emt 0:01:57]} Bf5 {[%emt 0:02:03]} 10. Bxc6+ {[%emt 0:00:39]} bxc6 {[%emt 0:00:21]} 11. Qxc6+ {[%emt 0:00:04]} Kf8 {[%emt 0:00:33]} 12. O-O-O {[%emt 0:03:04]} Rb8 {[%emt 0:01:30]} 13. Qd5 {[%emt 0:04:29]} Bd6 {[%emt 0:02:18]} 14. Nge2 {[%emt 0:02:26]} Kg7 {[%emt 0:00:55]} 15. Rhe1 {[%emt 0:04:35]} Re8 {[%emt 0:01:17]} 16. Ng3 {[%emt 0:01:40]} Bg4 {[%emt 0:05:17]} 17. f3 {[%emt 0:04:39]} Bd7 {[%emt 0:00:33]} 18. Rxe8 {[%emt 0:05:05]} Qxe8 {[%emt 0:00:08]} 19. Nce4 {[%emt 0:02:31]} Be6 {[%emt 0:07:27]} 20. Nxd6 {[%emt 0:04:12]} cxd6 {[%emt 0:18:26]} 21. Qxd6 {[%emt 0:13:01]} Bxa2 {[%emt 0:01:43]} 22. b3 {[%emt 0:04:57]} Qe3+ {[%emt 0:00:46]} 23. Kb2 {[%emt 0:00:18]} Rb6 {[%emt 0:07:22]} 24. Qc7+ {[%emt 0:03:19]} Kh6 {[%emt 0:00:26]} 25. Kxa2 {[%emt 0:00:51]} Qf2 {[%emt 0:01:56]} 26. Qf4+ {[%emt 0:00:38]} g5 {[%emt 0:00:51]} 27. Qd2 {[%emt 0:00:14]} Qxd2 {[%emt 0:03:12]} 28. Rxd2 {[%emt 0:00:05]} a5 {[%emt 0:00:40]} 29. d5 {[%emt 0:00:14]} Rd6 {[%emt 0:00:18]} 30. Nf5+ {[%emt 0:00:06]} 0-1

[Event "WJCC U20 Girls 2019"]
[Site "New Delhi"]
[Date "2019.10.17"]
[Round "4.47"]
[White "Yaakub, Nov Genevia Pslam"]
[Black "Lohani, Sujana"]
[Result "0-1"]
[ECO "B00"]
[WhiteElo "1316"]
[BlackElo "1671"]
[Annotator "NA"]
[PlyCount "86"]
[EventDate "2019.10.15"]
[EventType "swiss"]
[EventCountry "IND"]
[SourceTitle "playchess.com"]
[Source "ChessBase"]
[SourceQuality "1"]
[TimeControl "40/5400+30:1800+30"]

1. e4 {[%emt 0:00:00]} d6 {[%emt 0:00:00]} 2. Nf3 {[%emt 0:00:10]} Nf6 {[%emt 0:00:00]} 3. Nc3 {[%emt 0:00:29]} g6 {[%emt 0:00:05]} 4. Bc4 {[%emt 0:00:56]} Bg7 {[%emt 0:00:31]} 5. d3 {[%emt 0:00:45]} O-O {[%emt 0:00:26]} 6. h3 {[%emt 0:00:34]} c5 {[%emt 0:01:27]} 7. O-O {[%emt 0:01:05]} Nc6 {[%emt 0:01:08]} 8. d4 {[%emt 0:05:33]} cxd4 {[%emt 0:03:54]} 9. Nxd4 {[%emt 0:00:10]} Qb6 {[%emt 0:10:26]} 10. Nb3 {[%emt 0:07:34]} a6 {[%emt 0:07:40]} 11. Be3 {[%emt 0:02:10]} Qc7 {[%emt 0:03:29]} 12. Be2 {[%emt 0:06:29]} b5 {[%emt 0:05:17]} 13. a3 {[%emt 0:05:25]} Be6 {[%emt 0:07:53]} 14. Nd4 {[%emt 0:07:31]} Nxd4 {[%emt 0:09:39]} 15. Bxd4 {[%emt 0:00:17]} Rfc8 {[%emt 0:01:10]} 16. f4 {[%emt 0:07:02]} Bc4 {[%emt 0:06:50]} 17. e5 {[%emt 0:11:33]} Ne8 {[%emt 0:12:14]} 18. exd6 {[%emt 0:10:54]} Bxd4+ {[%emt 0:07:28]} 19. Qxd4 {[%emt 0:00:18]} Nxd6 {[%emt 0:00:42]} 20. Bxc4 {[%emt 0:04:12]} Nxc4 {[%emt 0:00:35]} 21. Nd5 {[%emt 0:00:41]} Qa7 {[%emt 0:05:43]} 22. Qxa7 {[%emt 0:00:53]} Rxa7 {[%emt 0:00:09]} 23. b3 {[%emt 0:06:39]} Nd2 {[%emt 0:01:36]} 24. Rf2 {[%emt 0:00:49]} Ne4 {[%emt 0:03:48]} 25. Re2 {[%emt 0:02:13]} f5 {[%emt 0:00:50]} 26. g4 {[%emt 0:04:09]} e6 {[%emt 0:01:10]} 27. Nb4 {[%emt 0:01:33]} Kf7 {[%emt 0:02:02]} 28. Kg2 {[%emt 0:03:52]} a5 {[%emt 0:02:16]} 29. Nd3 {[%emt 0:00:17]} Rac7 {[%emt 0:01:11]} 30. Ne5+ {[%emt 0:01:13]} Ke7 {[%emt 0:00:23]} 31. Rc1 {[%emt 0:01:06]} Rc3 {[%emt 0:00:25]} 32. Kh2 {[%emt 0:01:44]} Rxb3 {[%emt 0:01:26]} 33. cxb3 {[%emt 0:01:44]} Rxc1 {[%emt 0:00:08]} 34. Re3 {[%emt 0:00:57]} a4 {[%emt 0:01:49]} 35. bxa4 {[%emt 0:01:33]} bxa4 {[%emt 0:00:11]} 36. Rd3 {[%emt 0:00:27]} Rc2+ {[%emt 0:00:36]} 37. Kg1 {[%emt 0:00:18]} Rc7 {[%emt 0:01:20]} 38. Rd4 {[%emt 0:01:00]} Nc3 {[%emt 0:00:16]} 39. Rd3 {[%emt 0:00:38]} Ne2+ {[%emt 0:00:53]} 40. Kf2 {[%emt 0:01:06]} Nxf4 {[%emt 0:00:15]} 41. Rd4 Nxh3+ 42. Kg3 Ng5 43. Rxa4 Ke8 0-1

[Event "WJCC U20 Girls 2019"]
[Site "New Delhi"]
[Date "2019.10.18"]
[Round "5.1"]
[White "Assaubayeva, Bibisara"]
[Black "Altantuya, Boldbaatar"]
[Result "1/2-1/2"]
[ECO "E18"]
[WhiteElo "2381"]
[BlackElo "2277"]
[Annotator "NA"]
[PlyCount "169"]
[EventDate "2019.10.15"]
[EventType "swiss"]
[EventCountry "IND"]
[SourceTitle "playchess.com"]
[Source "ChessBase"]
[SourceQuality "1"]
[TimeControl "40/5400+30:1800+30"]

1. d4 {[%emt 0:00:00]} Nf6 {[%emt 0:00:00]} 2. c4 {[%emt 0:00:14]} e6 {[%emt 0:00:00]} 3. Nf3 {[%emt 0:00:06]} b6 {[%emt 0:00:18]} 4. g3 {[%emt 0:00:19]} Bb7 {[%emt 0:00:26]} 5. Bg2 {[%emt 0:00:13]} Be7 {[%emt 0:00:33]} 6. O-O {[%emt 0:00:12]} O-O {[%emt 0:00:12]} 7. Nc3 {[%emt 0:00:29]} Ne4 {[%emt 0:00:26]} 8. Bd2 {[%emt 0:00:18]} d5 {[%emt 0:02:06]} 9. cxd5 {[%emt 0:04:17]} exd5 {[%emt 0:00:30]} 10. Rc1 {[%emt 0:01:39]} Nd7 {[%emt 0:01:44]} 11. Bf4 {[%emt 0:05:31]} c5 {[%emt 0:03:01]} 12. dxc5 {[%emt 0:03:55]} Nxc3 {[%emt 0:01:05]} 13. Rxc3 {[%emt 0:03:59]} bxc5 {[%emt 0:00:12]} 14. Ne1 {[%emt 0:07:55]} Nb6 {[%emt 0:09:29]} 15. Rd3 $15 {[%emt 0:06:10]} Qc8 {[%emt 0:07:00]} 16. Nc2 {[%emt 0:05:02]} d4 {[%emt 0:04:29]} 17. Bxb7 {[%emt 0:08:16]} Qxb7 {[%emt 0:00:03]} 18. Bc1 {[%emt 0:05:02]} a5 {[%emt 0:08:56]} 19. e3 {[%emt 0:02:59]} dxe3 {[%emt 0:02:07]} 20. Nxe3 {[%emt 0:01:50]} Rfd8 {[%emt 0:09:59]} 21. Re1 {[%emt 0:01:17]} Bf6 {[%emt 0:14:27]} 22. Nf5 {[%emt 0:01:22]} Rxd3 {[%emt 0:05:20]} 23. Qxd3 {[%emt 0:00:02]} Qd7 {[%emt 0:00:13]} 24. Qc2 {[%emt 0:05:55]} Qc6 {[%emt 0:01:52]} 25. Be3 {[%emt 0:02:48]} Nd7 {[%emt 0:03:07]} 26. Bd4 {[%emt 0:03:06]} h6 {[%emt 0:01:01]} 27. Bc3 {[%emt 0:03:26]} Kh8 {[%emt 0:03:51]} 28. Qd2 {[%emt 0:04:02]} Bxc3 {[%emt 0:04:28]} 29. bxc3 {[%emt 0:03:03]} Nf8 {[%emt 0:05:52]} 30. Nd6 {[%emt 0:03:24]} Kg8 {[%emt 0:01:01]} 31. Qf4 {[%emt 0:02:04]} Qd7 {[%emt 0:00:49]} 32. Nf5 {[%emt 0:01:24]} Ng6 {[%emt 0:00:40]} 33. Qg4 {[%emt 0:03:45]} Rd8 {[%emt 0:00:20]} 34. h4 {[%emt 0:02:21]} Qd2 {[%emt 0:02:25]} 35. Rf1 {[%emt 0:02:46]} h5 {[%emt 0:03:35]} 36. Qxh5 {[%emt 0:00:18]} Qxc3 {[%emt 0:00:07]} 37. Qg5 {[%emt 0:00:41]} Qf6 {[%emt 0:01:34]} 38. Nh6+ {[%emt 0:00:31]} Kf8 {[%emt 0:01:26]} 39. Qxc5+ {[%emt 0:00:11]} Qe7 {[%emt 0:00:27]} 40. Qxe7+ {[%emt 0:00:16]} Nxe7 {[%emt 0:00:36]} 41. Ng4 {[%emt 0:30:08]} f6 {[%emt 0:30:52]} 42. Ne3 {[%emt 0:05:56]} Rd2 {[%emt 0:01:14]} 43. Ra1 {[%emt 0:01:44]} Nc6 {[%emt 0:02:29]} 44. Rc1 {[%emt 0:02:05]} Ne5 {[%emt 0:00:00]} 45. Rc2 {[%emt 0:00:00]} Rd3 {[%emt 0:00:00]} 46. Kf1 {[%emt 0:00:00]} g6 {[%emt 0:00:00]} 47. Ke2 {[%emt 0:00:00]} Rd6 {[%emt 0:00:00]} 48. Rc5 {[%emt 0:00:00]} Nc6 {[%emt 0:00:00]} 49. Rd5 {[%emt 0:00:00]} Re6 {[%emt 0:00:00]} 50. Kd2 {[%emt 0:00:00]} Ke7 {[%emt 0:00:14]} 51. Rb5 {[%emt 0:00:00]} Re4 {[%emt 0:02:19]} 52. Nd5+ {[%emt 0:00:00]} Ke6 {[%emt 0:01:22]} 53. Nf4+ {[%emt 0:00:00]} Kf7 {[%emt 0:00:07]} 54. Rb7+ {[%emt 0:00:00]} Ne7 {[%emt 0:00:06]} 55. Kc3 {[%emt 0:00:00]} Re5 {[%emt 0:01:12]} 56. a4 {[%emt 0:00:00]} Rc5+ {[%emt 0:00:30]} 57. Kd4 {[%emt 0:00:00]} Re5 {[%emt 0:00:30]} 58. Kd3 {[%emt 0:00:00]} g5 {[%emt 0:01:26]} 59. hxg5 {[%emt 0:00:00]} Rxg5 {[%emt 0:00:43]} 60. Rb5 {[%emt 0:00:00]} Nc6 {[%emt 0:00:31]} 61. Rb7+ {[%emt 0:00:05]} Ke8 {[%emt 0:00:22]} 62. Rc7 {[%emt 0:02:23]} Ne5+ {[%emt 0:00:35]} 63. Ke4 {[%emt 0:00:10]} Nd7 {[%emt 0:00:26]} 64. Kd4 {[%emt 0:00:58]} Nb6 {[%emt 0:00:18]} 65. Rc6 {[%emt 0:01:17]} Nxa4 {[%emt 0:00:06]} 66. Rxf6 {[%emt 0:00:03]} Nb2 {[%emt 0:01:16]} 67. Ne2 {[%emt 0:03:19]} Ke7 {[%emt 0:00:30]} 68. Rb6 {[%emt 0:00:24]} Na4 {[%emt 0:00:16]} 69. Rb1 {[%emt 0:02:00]} Kd6 {[%emt 0:00:17]} 70. f4 {[%emt 0:00:48]} Rd5+ {[%emt 0:00:08]} 71. Ke3 {[%emt 0:00:30]} Nc5 {[%emt 0:00:59]} 72. Nd4 {[%emt 0:00:00]} Rh5 {[%emt 0:00:11]} 73. f5 {[%emt 0:00:45]} Rh3 {[%emt 0:00:42]} 74. Kf4 {[%emt 0:00:23]} Nd3+ {[%emt 0:00:33]} 75. Kg4 {[%emt 0:00:17]} Rh8 {[%emt 0:00:51]} 76. Rb5 {[%emt 0:02:03]} Rg8+ {[%emt 0:00:31]} 77. Kf3 {[%emt 0:00:08]} Ne5+ {[%emt 0:00:11]} 78. Kg2 {[%emt 0:00:57]} a4 {[%emt 0:00:05]} 79. Nc2 {[%emt 0:00:14]} Nc4 {[%emt 0:00:27]} 80. Nb4 {[%emt 0:00:42]} Ke7 {[%emt 0:00:02]} 81. Rc5 {[%emt 0:00:06]} Nd2 {[%emt 0:01:41]} 82. g4 {[%emt 0:01:35]} Kf6 {[%emt 0:00:18]} 83. Re5 {[%emt 0:00:17]} Kg5 {[%emt 0:00:15]} 84. Re6 {[%emt 0:01:02]} a3 {[%emt 0:01:02]} 85. Nd5 {[%emt 0:00:24]} 1/2-1/2

[Event "WJCC U20 Girls 2019"]
[Site "New Delhi"]
[Date "2019.10.18"]
[Round "5.4"]
[White "Yakubbaeva, Nilufar"]
[Black "Tsolakidou, Stavroula"]
[Result "0-1"]
[ECO "B22"]
[WhiteElo "2281"]
[BlackElo "2431"]
[Annotator "NA"]
[PlyCount "94"]
[EventDate "2019.10.15"]
[EventType "swiss"]
[EventCountry "IND"]
[SourceTitle "playchess.com"]
[Source "ChessBase"]
[SourceQuality "1"]
[TimeControl "40/5400+30:1800+30"]

1. e4 {[%emt 0:00:00]} c5 {[%emt 0:00:00]} 2. c3 {[%emt 0:00:00]} d5 {[%emt 0:00:08]} 3. exd5 {[%emt 0:00:00]} Qxd5 {[%emt 0:00:07]} 4. d4 {[%emt 0:00:01]} Nf6 {[%emt 0:14:13]} 5. Nf3 {[%emt 0:00:16]} e6 {[%emt 0:00:07]} 6. Be2 {[%emt 0:00:09]} cxd4 {[%emt 0:02:45]} 7. cxd4 {[%emt 0:01:13]} Be7 {[%emt 0:00:50]} 8. Nc3 {[%emt 0:00:29]} Qd6 {[%emt 0:00:22]} 9. O-O {[%emt 0:01:39]} O-O {[%emt 0:00:19]} 10. Bg5 {[%emt 0:02:06]} Nc6 {[%emt 0:17:45]} 11. Nb5 {[%emt 0:05:31]} Qd8 {[%emt 0:02:46]} 12. Ne5 {[%emt 0:01:38]} Bd7 {[%emt 0:14:10]} 13. Rc1 {[%emt 0:24:41]} Be8 {[%emt 0:04:56]} 14. Bd3 {[%emt 0:15:57]} Qb6 {[%emt 0:11:02]} 15. Rc3 {[%emt 0:03:44]} h6 {[%emt 0:09:16]} 16. Bxh6 {[%emt 0:12:52]} gxh6 {[%emt 0:04:46]} 17. Ng4 {[%emt 0:00:50]} Nb4 {[%emt 0:10:00]} 18. Nxh6+ {[%emt 0:03:35]} Kg7 {[%emt 0:00:25]} 19. Nc7 {[%emt 0:11:20]} Rd8 {[%emt 0:00:04]} 20. Bb1 {[%emt 0:01:30]} Rh8 {[%emt 0:03:30]} 21. Rg3+ {[%emt 0:01:25]} Kf8 {[%emt 0:00:04]} 22. Qc1 {[%emt 0:01:14]} Nh5 {[%emt 0:01:44]} 23. Rh3 {[%emt 0:02:35]} Rc8 {[%emt 0:00:19]} 24. Rc3 {[%emt 0:01:49]} Rd8 {[%emt 0:00:31]} 25. Rh3 {[%emt 0:00:06]} Rc8 {[%emt 0:01:46]} 26. Rc3 {[%emt 0:00:03]} Rd8 {[%emt 0:00:22]} 27. Rh3 {[%emt 0:00:05]} Nf6 {[%emt 0:00:25]} 28. Rg3 {[%emt 0:00:08]} Rxd4 {[%emt 0:00:33]} 29. Rh3 {[%emt 0:05:21]} Qc5 {[%emt 0:00:12]} 30. Nxf7 {[%emt 0:00:46]} Qxc1 {[%emt 0:00:58]} 31. Rxh8+ {[%emt 0:00:15]} Kxf7 {[%emt 0:00:20]} 32. Rxc1 {[%emt 0:00:34]} Bc6 {[%emt 0:00:18]} 33. a3 {[%emt 0:00:40]} Nbd5 {[%emt 0:00:09]} 34. Nxd5 {[%emt 0:00:23]} Bxd5 {[%emt 0:00:15]} 35. Rh3 {[%emt 0:00:20]} Rd2 {[%emt 0:00:51]} 36. b4 {[%emt 0:01:13]} Bd8 37. Rd3 {[%emt 0:01:58]} Rb2 {[%emt 0:01:37]} 38. Rdc3 {[%emt 0:00:11]} Rd2 {[%emt 0:00:31]} 39. Rd3 {[%emt 0:00:05]} Re2 {[%emt 0:00:24]} 40. Kf1 {[%emt 0:00:54]} Re5 {[%emt 0:00:37]} 41. Re3 {[%emt 0:03:09]} Rh5 {[%emt 0:06:46]} 42. Rh3 {[%emt 0:02:56]} Rxh3 {[%emt 0:01:27]} 43. gxh3 {[%emt 0:00:04]} a5 {[%emt 0:02:44]} 44. Bd3 {[%emt 0:02:15]} axb4 {[%emt 0:01:25]} 45. axb4 {[%emt 0:00:05]} Be7 {[%emt 0:05:54]} 46. b5 {[%emt 0:00:20]} Bd6 {[%emt 0:02:27]} 47. Bc4 {[%emt 0:03:08]} Be4 {[%emt 0:01:56]} 0-1